[Event "Titled Tuesday Blitz June 27 Early 2023"]
[White "Mattheii"]
[Black "Panesar Vedant"]
[BlackFideId "35033018"]
[WhiteElo "2525"]
[BlackElo "2722"]
[Result "0-1"]
[Round "9"]
[TimeControl "180+2"]
[Date "2023.06.27"]
[WhiteClock "0:00:06"]
[BlackClock "0:00:56"]
[Board "72"]

1. d4 {[%clk 0:02:55]}  Nf6 {[%clk 0:03:00]} 2. c4 {[%clk 0:02:55]}  g6 {[%clk 0:03:00]} 3. Nc3 {[%clk 0:02:55]}  Bg7 {[%clk 0:03:00]} 4. e4 {[%clk 0:02:56]}  d6 {[%clk 0:03:00]} 5. h3 {[%clk 0:02:56]}  O-O {[%clk 0:03:00]} 6. Bg5 {[%clk 0:02:57]}  Nbd7 {[%clk 0:02:59]} 7. Bd3 {[%clk 0:02:56]}  e5 {[%clk 0:02:59]} 8. d5 {[%clk 0:02:57]}  Nc5 {[%clk 0:02:58]} 9. Bc2 {[%clk 0:02:57]}  Qe8 {[%clk 0:02:58]} 10. g4 {[%clk 0:02:53]}  a5 {[%clk 0:02:59]} 11. Nge2 {[%clk 0:02:53]}  Nfd7 {[%clk 0:02:59]} 12. Qd2 {[%clk 0:02:51]}  Nb6 {[%clk 0:02:58]} 13. b3 {[%clk 0:02:45]}  a4 {[%clk 0:02:48]} 14. O-O {[%clk 0:02:13]}  f5 {[%clk 0:02:25]} 15. exf5 {[%clk 0:02:13]}  gxf5 {[%clk 0:02:25]} 16. Bxf5 {[%clk 0:02:13]}  Bxf5 {[%clk 0:02:25]} 17. gxf5 {[%clk 0:02:14]}  Rxf5 {[%clk 0:02:23]} 18. Ng3 {[%clk 0:02:12]}  Rf3 {[%clk 0:02:20]} 19. Kg2 {[%clk 0:01:56]}  Qf7 {[%clk 0:02:18]} 20. Nce4 {[%clk 0:01:47]}  Nbd7 {[%clk 0:01:41]} 21. Qe2 {[%clk 0:01:23]}  Rf8 {[%clk 0:01:28]} 22. Be3 {[%clk 0:00:32]}  Nxe4 {[%clk 0:01:23]} 23. Nxe4 {[%clk 0:00:33]}  Qh5 {[%clk 0:01:22]} 24. Rh1 {[%clk 0:00:18]}  Qg6+ {[%clk 0:01:10]} 25. Ng3 {[%clk 0:00:17]}  e4 {[%clk 0:01:11]} 26. h4 {[%clk 0:00:15]}  Bxa1 {[%clk 0:01:07]} 27. Rxa1 {[%clk 0:00:13]}  Ne5 {[%clk 0:01:08]} 28. h5 {[%clk 0:00:13]}  Qg4 {[%clk 0:01:08]} 29. Re1 {[%clk 0:00:13]}  Rxg3+ {[%clk 0:00:58]} 30. fxg3 {[%clk 0:00:13]}  Rf3 {[%clk 0:00:59]} 31. Bf2 {[%clk 0:00:09]}  e3 {[%clk 0:00:59]} 32. Bxe3 {[%clk 0:00:07]}  Rxg3+ {[%clk 0:00:56]} 33. Kf1 {[%clk 0:00:06]}  Qh3+ {[%clk 0:00:54]} 34. Kf2 {[%clk 0:00:05]}  Rg2+ {[%clk 0:00:54]} 35. Kf1 {[%clk 0:00:05]}  Qh1+ {[%clk 0:00:55]} 36. Bg1 {[%clk 0:00:06]}  Qxg1# {[%clk 0:00:56]} 0-1


[Site "https://www.chess.com"]

[Event "Titled Tuesday Blitz June 27 Early 2023"]
[White "Klekowski, Maciej"]
[Black "Gamayev, Oleg"]
[WhiteFideId "1132717"]
[BlackFideId "2802813"]
[WhiteElo "2702"]
[BlackElo "2508"]
[Result "1-0"]
[Round "9"]
[TimeControl "180+2"]
[Date "2023.06.27"]
[WhiteClock "0:01:17"]
[BlackClock "0:01:33"]
[Board "74"]

1. e4 {[%clk 0:02:25]}  d6 {[%clk 0:02:55]} 2. Nf3 {[%clk 0:02:25]}  Nf6 {[%clk 0:02:55]} 3. Nc3 {[%clk 0:02:26]}  e5 {[%clk 0:02:55]} 4. Bb5+ {[%clk 0:02:25]}  c6 {[%clk 0:02:51]} 5. Ba4 {[%clk 0:02:25]}  Be7 {[%clk 0:02:52]} 6. O-O {[%clk 0:02:25]}  O-O {[%clk 0:02:52]} 7. h3 {[%clk 0:02:25]}  a5 {[%clk 0:02:51]} 8. Bb3 {[%clk 0:02:23]}  Nbd7 {[%clk 0:02:51]} 9. d4 {[%clk 0:02:22]}  exd4 {[%clk 0:02:51]} 10. Nxd4 {[%clk 0:02:22]}  Nc5 {[%clk 0:02:52]} 11. Re1 {[%clk 0:02:22]}  Re8 {[%clk 0:02:52]} 12. Qf3 {[%clk 0:02:16]}  Bf8 {[%clk 0:02:49]} 13. Bg5 {[%clk 0:02:14]}  Ne6 {[%clk 0:02:50]} 14. Bxf6 {[%clk 0:02:12]}  Qxf6 {[%clk 0:02:50]} 15. Qxf6 {[%clk 0:02:12]}  gxf6 {[%clk 0:02:51]} 16. Rad1 {[%clk 0:02:12]}  Nxd4 {[%clk 0:02:48]} 17. Rxd4 {[%clk 0:02:11]}  Be6 {[%clk 0:02:49]} 18. Kf1 {[%clk 0:02:05]}  b5 {[%clk 0:02:46]} 19. a4 {[%clk 0:02:03]}  Bxb3 {[%clk 0:02:30]} 20. cxb3 {[%clk 0:02:03]}  b4 {[%clk 0:02:30]} 21. Ne2 {[%clk 0:02:03]}  Re6 {[%clk 0:02:20]} 22. Ng3 {[%clk 0:02:03]}  Rae8 {[%clk 0:02:18]} 23. Rc1 {[%clk 0:02:03]}  c5 {[%clk 0:02:18]} 24. Rdc4 {[%clk 0:02:02]}  Re5 {[%clk 0:02:17]} 25. f4 {[%clk 0:01:59]}  R5e7 {[%clk 0:02:17]} 26. Kf2 {[%clk 0:01:58]}  Bh6 {[%clk 0:02:14]} 27. Kf3 {[%clk 0:01:58]}  Bf8 {[%clk 0:02:13]} 28. Nf5 {[%clk 0:01:57]}  Rb7 {[%clk 0:02:11]} 29. Rd1 {[%clk 0:01:58]}  Rb6 {[%clk 0:02:10]} 30. Ne3 {[%clk 0:01:53]}  Kg7 {[%clk 0:02:06]} 31. Rd3 {[%clk 0:01:50]}  h5 {[%clk 0:02:05]} 32. Nf5+ {[%clk 0:01:44]}  Kg6 {[%clk 0:02:02]} 33. g4 {[%clk 0:01:43]}  hxg4+ {[%clk 0:02:01]} 34. hxg4 {[%clk 0:01:44]}  Rb7 {[%clk 0:01:49]} 35. Rd1 {[%clk 0:01:40]}  Rd7 {[%clk 0:01:48]} 36. Rc2 {[%clk 0:01:39]}  Red8 {[%clk 0:01:43]} 37. Rcd2 {[%clk 0:01:15]}  Rc7 {[%clk 0:01:41]} 38. Rh1 {[%clk 0:01:14]}  d5 {[%clk 0:01:33]} 39. exd5 {[%clk 0:01:15]}  Rcd7 {[%clk 0:01:33]} 40. Rdh2 {[%clk 0:01:15]}  Rxd5 {[%clk 0:01:33]} 41. Rh6+ {[%clk 0:01:16]}  Bxh6 {[%clk 0:01:33]} 42. Rxh6# {[%clk 0:01:17]} 1-0


[Site "https://www.chess.com"]

[Event "Titled Tuesday Blitz June 27 Early 2023"]
[White "Khoroshev, Nikita"]
[Black "Yaksin, Oleg"]
[WhiteFideId "14200287"]
[BlackFideId "24105880"]
[WhiteElo "2649"]
[BlackElo "2537"]
[Result "0-1"]
[Round "9"]
[TimeControl "180+2"]
[Date "2023.06.27"]
[WhiteClock "0:00:00"]
[BlackClock "0:00:07"]
[Board "77"]

1. Nf3 {[%clk 0:02:59]}  d5 {[%clk 0:02:58]} 2. g3 {[%clk 0:02:57]}  c6 {[%clk 0:02:56]} 3. Bg2 {[%clk 0:02:57]}  Nf6 {[%clk 0:02:56]} 4. c4 {[%clk 0:02:56]}  Bf5 {[%clk 0:02:54]} 5. Qb3 {[%clk 0:02:56]}  Qb6 {[%clk 0:02:52]} 6. d3 {[%clk 0:02:51]}  Qxb3 {[%clk 0:02:45]} 7. axb3 {[%clk 0:02:50]}  Nbd7 {[%clk 0:02:46]} 8. Nc3 {[%clk 0:02:50]}  e6 {[%clk 0:02:45]} 9. Nh4 {[%clk 0:02:37]}  Bg6 {[%clk 0:02:43]} 10. Nxg6 {[%clk 0:02:36]}  hxg6 {[%clk 0:02:44]} 11. h3 {[%clk 0:02:17]}  Bb4 {[%clk 0:02:43]} 12. Kd1 {[%clk 0:02:16]}  Ke7 {[%clk 0:02:35]} 13. Kc2 {[%clk 0:02:16]}  Bd6 {[%clk 0:02:24]} 14. Bd2 {[%clk 0:02:13]}  Rhc8 {[%clk 0:02:21]} 15. Rhd1 {[%clk 0:02:08]}  a5 {[%clk 0:02:13]} 16. Be1 {[%clk 0:02:07]}  Ra6 {[%clk 0:01:45]} 17. e4 {[%clk 0:02:03]}  dxe4 {[%clk 0:01:44]} 18. dxe4 {[%clk 0:02:03]}  e5 {[%clk 0:01:41]} 19. Bd2 {[%clk 0:01:56]}  Nc5 {[%clk 0:01:40]} 20. Be3 {[%clk 0:01:55]}  Ne6 {[%clk 0:01:39]} 21. Ne2 {[%clk 0:01:55]}  Bc5 {[%clk 0:01:37]} 22. Bxc5+ {[%clk 0:01:32]}  Nxc5 {[%clk 0:01:37]} 23. f3 {[%clk 0:01:28]}  Raa8 {[%clk 0:01:25]} 24. h4 {[%clk 0:01:27]}  Ne8 {[%clk 0:01:15]} 25. Bh3 {[%clk 0:01:27]}  Rc7 {[%clk 0:01:12]} 26. b4 {[%clk 0:01:23]}  Na6 {[%clk 0:01:07]} 27. bxa5 {[%clk 0:01:22]}  Nd6 {[%clk 0:01:05]} 28. Kc3 {[%clk 0:01:21]}  c5 {[%clk 0:01:02]} 29. Rd5 {[%clk 0:01:17]}  f6 {[%clk 0:01:01]} 30. Rad1 {[%clk 0:01:17]}  Rd8 {[%clk 0:01:01]} 31. Nc1 {[%clk 0:01:13]}  Nb4 {[%clk 0:01:00]} 32. R5d2 {[%clk 0:01:13]}  Nc6 {[%clk 0:01:00]} 33. Nb3 {[%clk 0:01:13]}  Nd4 {[%clk 0:01:00]} 34. Bg2 {[%clk 0:01:06]}  Ra8 {[%clk 0:00:59]} 35. Ra1 {[%clk 0:01:05]}  Nf7 {[%clk 0:00:47]} 36. f4 {[%clk 0:01:01]}  Nd8 {[%clk 0:00:46]} 37. fxe5 {[%clk 0:00:53]}  fxe5 {[%clk 0:00:47]} 38. Rf2 {[%clk 0:00:53]}  N8e6 {[%clk 0:00:44]} 39. Nc1 {[%clk 0:00:47]}  b5 {[%clk 0:00:25]} 40. cxb5 {[%clk 0:00:34]}  Nxb5+ {[%clk 0:00:24]} 41. Kc2 {[%clk 0:00:28]}  c4 {[%clk 0:00:24]} 42. a6 {[%clk 0:00:20]}  Ned4+ {[%clk 0:00:22]} 43. Kb1 {[%clk 0:00:20]}  c3 {[%clk 0:00:22]} 44. Ra4 {[%clk 0:00:18]}  c2+ {[%clk 0:00:09]} 45. Ka2 {[%clk 0:00:18]}  Rc6 {[%clk 0:00:08]} 46. Bf1 {[%clk 0:00:12]}  Rcxa6 {[%clk 0:00:08]} 47. Bxb5 {[%clk 0:00:00]}  Rxa4+ {[%clk 0:00:07]} 0-1


[Site "https://www.chess.com"]

[Event "Titled Tuesday Blitz June 27 Early 2023"]
[White "Sanhueza, Cristian"]
[Black "Sahib Singh"]
[WhiteFideId "116815"]
[BlackFideId "25618342"]
[WhiteElo "2481"]
[BlackElo "2647"]
[Result "0-1"]
[Round "9"]
[TimeControl "180+2"]
[Date "2023.06.27"]
[WhiteClock "0:00:03"]
[BlackClock "0:01:11"]
[Board "78"]

1. e4 {[%clk 0:03:00]}  e6 {[%clk 0:02:56]} 2. d4 {[%clk 0:03:00]}  d5 {[%clk 0:02:54]} 3. Nc3 {[%clk 0:03:01]}  Bb4 {[%clk 0:02:52]} 4. Ne2 {[%clk 0:02:59]}  dxe4 {[%clk 0:02:51]} 5. a3 {[%clk 0:02:59]}  Bxc3+ {[%clk 0:02:52]} 6. Nxc3 {[%clk 0:03:00]}  Nc6 {[%clk 0:02:53]} 7. Bf4 {[%clk 0:02:48]}  Nf6 {[%clk 0:02:48]} 8. Bb5 {[%clk 0:02:44]}  O-O {[%clk 0:02:46]} 9. Bxc6 {[%clk 0:02:35]}  bxc6 {[%clk 0:02:46]} 10. Be5 {[%clk 0:02:27]}  Ba6 {[%clk 0:02:36]} 11. Qd2 {[%clk 0:02:21]}  Nd7 {[%clk 0:02:19]} 12. Nxe4 {[%clk 0:02:16]}  Nxe5 {[%clk 0:02:19]} 13. dxe5 {[%clk 0:02:17]}  Qd5 {[%clk 0:02:15]} 14. Qxd5 {[%clk 0:02:14]}  cxd5 {[%clk 0:02:14]} 15. Nc5 {[%clk 0:02:14]}  Bb5 {[%clk 0:02:14]} 16. a4 {[%clk 0:02:11]}  Bc6 {[%clk 0:02:13]} 17. a5 {[%clk 0:01:44]}  Rfb8 {[%clk 0:02:10]} 18. b3 {[%clk 0:01:43]}  Rb5 {[%clk 0:02:02]} 19. Nd3 {[%clk 0:01:39]}  d4 {[%clk 0:01:46]} 20. f3 {[%clk 0:01:34]}  f6 {[%clk 0:01:43]} 21. exf6 {[%clk 0:01:29]}  gxf6 {[%clk 0:01:43]} 22. Kd2 {[%clk 0:01:29]}  e5 {[%clk 0:01:41]} 23. Rhe1 {[%clk 0:01:28]}  Kf7 {[%clk 0:01:39]} 24. b4 {[%clk 0:01:19]}  Bd5 {[%clk 0:01:36]} 25. Rab1 {[%clk 0:01:17]}  Rd8 {[%clk 0:01:35]} 26. Nc5 {[%clk 0:01:14]}  Rdb8 {[%clk 0:01:28]} 27. Na6 {[%clk 0:01:05]}  R8b7 {[%clk 0:01:27]} 28. Nc5 {[%clk 0:01:05]}  Rb8 {[%clk 0:01:28]} 29. Na6 {[%clk 0:01:00]}  Rc8 {[%clk 0:01:28]} 30. Kd3 {[%clk 0:00:51]}  Ba2 {[%clk 0:01:26]} 31. Rb2 {[%clk 0:00:42]}  Be6 {[%clk 0:01:25]} 32. g4 {[%clk 0:00:32]}  c5 {[%clk 0:01:22]} 33. Kd2 {[%clk 0:00:16]}  Rc6 {[%clk 0:01:15]} 34. Reb1 {[%clk 0:00:06]}  c4 {[%clk 0:01:12]} 35. Nc5 {[%clk 0:00:03]}  c3+ {[%clk 0:01:11]} 0-1


[Site "https://www.chess.com"]

[Event "Titled Tuesday Blitz June 27 Early 2023"]
[White "Reprintsev, Alexander"]
[Black "Ganiev, Roman"]
[WhiteFideId "14100541"]
[BlackFideId "4131452"]
[WhiteElo "2470"]
[BlackElo "2597"]
[Result "1-0"]
[Round "9"]
[TimeControl "180+2"]
[Date "2023.06.27"]
[WhiteClock "0:00:10"]
[BlackClock "0:00:02"]
[Board "79"]

1. e4 {[%clk 0:02:52]}  c5 {[%clk 0:02:59]} 2. b3 {[%clk 0:02:39]}  g6 {[%clk 0:02:57]} 3. Bb2 {[%clk 0:02:38]}  Nf6 {[%clk 0:02:57]} 4. e5 {[%clk 0:02:38]}  Nd5 {[%clk 0:02:57]} 5. Nc3 {[%clk 0:02:39]}  Nxc3 {[%clk 0:02:57]} 6. dxc3 {[%clk 0:02:39]}  Bg7 {[%clk 0:02:57]} 7. Qd5 {[%clk 0:02:39]}  Qc7 {[%clk 0:02:51]} 8. f4 {[%clk 0:02:34]}  O-O {[%clk 0:02:48]} 9. O-O-O {[%clk 0:02:31]}  b6 {[%clk 0:02:44]} 10. h4 {[%clk 0:02:16]}  Bb7 {[%clk 0:02:43]} 11. Qd2 {[%clk 0:02:16]}  h5 {[%clk 0:02:41]} 12. Nf3 {[%clk 0:02:06]}  Rd8 {[%clk 0:02:05]} 13. Ng5 {[%clk 0:01:55]}  d5 {[%clk 0:01:57]} 14. g4 {[%clk 0:01:49]}  d4 {[%clk 0:01:51]} 15. Bg2 {[%clk 0:01:47]}  Nc6 {[%clk 0:01:44]} 16. gxh5 {[%clk 0:01:37]}  dxc3 {[%clk 0:01:44]} 17. Qxc3 {[%clk 0:01:37]}  Nd4 {[%clk 0:01:44]} 18. Qc4 {[%clk 0:00:58]}  e6 {[%clk 0:01:21]} 19. Bxb7 {[%clk 0:00:57]}  Qxb7 {[%clk 0:01:21]} 20. hxg6 {[%clk 0:00:57]}  Rd5 {[%clk 0:00:14]} 21. gxf7+ {[%clk 0:00:55]}  Kh8 {[%clk 0:00:14]} 22. Bxd4 {[%clk 0:00:54]}  cxd4 {[%clk 0:00:13]} 23. Nxe6 {[%clk 0:00:47]}  Rc8 {[%clk 0:00:12]} 24. Qd3 {[%clk 0:00:42]}  Qc6 {[%clk 0:00:11]} 25. Ng5 {[%clk 0:00:38]}  Qh6 {[%clk 0:00:09]} 26. Qe4 {[%clk 0:00:31]}  Rdc5 {[%clk 0:00:09]} 27. Rh2 {[%clk 0:00:28]}  a5 {[%clk 0:00:08]} 28. Rxd4 {[%clk 0:00:27]}  a4 {[%clk 0:00:07]} 29. Rd6 {[%clk 0:00:25]}  Qh5 {[%clk 0:00:07]} 30. Qxa4 {[%clk 0:00:14]}  Qg4 {[%clk 0:00:06]} 31. Qe4 {[%clk 0:00:12]}  Qg1+ {[%clk 0:00:06]} 32. Kb2 {[%clk 0:00:11]}  Rxc2+ {[%clk 0:00:04]} 33. Rxc2 {[%clk 0:00:10]}  Rxc2+ {[%clk 0:00:02]} 34. Qxc2 {[%clk 0:00:10]} 1-0


[Site "https://www.chess.com"]

[Event "Titled Tuesday Blitz June 27 Early 2023"]
[White "Andreev, Konstantin"]
[Black "Zavgorodniy, Sergiy"]
[WhiteFideId "24239305"]
[BlackFideId "14110148"]
[WhiteElo "2436"]
[BlackElo "2578"]
[Result "0-1"]
[Round "9"]
[TimeControl "180+2"]
[Date "2023.06.27"]
[WhiteClock "0:00:07"]
[BlackClock "0:02:21"]
[Board "81"]

1. e4 {[%clk 0:03:00]}  c6 {[%clk 0:02:59]} 2. d4 {[%clk 0:03:00]}  d5 {[%clk 0:03:00]} 3. e5 {[%clk 0:03:01]}  Bf5 {[%clk 0:03:00]} 4. Nf3 {[%clk 0:03:01]}  e6 {[%clk 0:03:00]} 5. Be2 {[%clk 0:03:02]}  Nd7 {[%clk 0:03:01]} 6. O-O {[%clk 0:03:02]}  a6 {[%clk 0:03:02]} 7. a4 {[%clk 0:03:02]}  f6 {[%clk 0:03:00]} 8. exf6 {[%clk 0:03:00]}  Ngxf6 {[%clk 0:03:00]} 9. Nh4 {[%clk 0:02:48]}  Bd6 {[%clk 0:02:57]} 10. Nxf5 {[%clk 0:02:45]}  exf5 {[%clk 0:02:58]} 11. Bd3 {[%clk 0:02:45]}  g6 {[%clk 0:02:57]} 12. Re1+ {[%clk 0:02:44]}  Kf7 {[%clk 0:02:58]} 13. c4 {[%clk 0:02:42]}  Qc7 {[%clk 0:02:52]} 14. h3 {[%clk 0:02:40]}  Rae8 {[%clk 0:02:51]} 15. Rxe8 {[%clk 0:02:36]}  Rxe8 {[%clk 0:02:52]} 16. c5 {[%clk 0:02:36]}  Bf4 {[%clk 0:02:52]} 17. Nc3 {[%clk 0:02:33]}  Ne4 {[%clk 0:02:50]} 18. Ne2 {[%clk 0:02:28]}  Bxc1 {[%clk 0:02:43]} 19. Rxc1 {[%clk 0:02:29]}  Ndf6 {[%clk 0:02:43]} 20. f3 {[%clk 0:02:27]}  Ng3 {[%clk 0:02:43]} 21. Qd2 {[%clk 0:02:23]}  Nxe2+ {[%clk 0:02:41]} 22. Bxe2 {[%clk 0:02:24]}  Qg3 {[%clk 0:02:41]} 23. Bd3 {[%clk 0:02:19]}  Nh5 {[%clk 0:02:41]} 24. Kf1 {[%clk 0:01:54]}  Nf4 {[%clk 0:02:39]} 25. b4 {[%clk 0:00:07]}  Qh2 {[%clk 0:02:21]} 0-1


[Site "https://www.chess.com"]

[Event "Titled Tuesday Blitz June 27 Early 2023"]
[White "TomLiu777"]
[Black "profedechess93"]
[WhiteElo "2423"]
[BlackElo "2567"]
[Result "1-0"]
[Round "9"]
[TimeControl "180+2"]
[Date "2023.06.27"]
[WhiteClock "0:00:30"]
[BlackClock "0:00:08"]
[Board "83"]

1. b3 {[%clk 0:02:48]}  d5 {[%clk 0:02:59]} 2. Bb2 {[%clk 0:02:49]}  Nf6 {[%clk 0:03:00]} 3. e3 {[%clk 0:02:47]}  c5 {[%clk 0:03:00]} 4. f4 {[%clk 0:02:48]}  a6 {[%clk 0:02:59]} 5. Nf3 {[%clk 0:02:48]}  Bg4 {[%clk 0:03:00]} 6. Be2 {[%clk 0:02:48]}  Bxf3 {[%clk 0:02:59]} 7. Bxf3 {[%clk 0:02:48]}  Nc6 {[%clk 0:03:00]} 8. O-O {[%clk 0:02:47]}  e6 {[%clk 0:03:00]} 9. d3 {[%clk 0:02:48]}  Qc7 {[%clk 0:03:00]} 10. Nd2 {[%clk 0:02:48]}  O-O-O {[%clk 0:03:01]} 11. Qe2 {[%clk 0:02:44]}  Be7 {[%clk 0:02:54]} 12. c4 {[%clk 0:02:29]}  d4 {[%clk 0:02:54]} 13. Bxc6 {[%clk 0:02:23]}  Qxc6 {[%clk 0:02:54]} 14. e4 {[%clk 0:02:23]}  h5 {[%clk 0:02:54]} 15. Nf3 {[%clk 0:02:20]}  Ng4 {[%clk 0:02:48]} 16. Ne5 {[%clk 0:02:06]}  Nxe5 {[%clk 0:02:40]} 17. fxe5 {[%clk 0:02:07]}  Rdf8 {[%clk 0:02:40]} 18. b4 {[%clk 0:01:44]}  Qc7 {[%clk 0:02:38]} 19. bxc5 {[%clk 0:01:34]}  Bxc5 {[%clk 0:02:38]} 20. Bc1 {[%clk 0:01:34]}  Be7 {[%clk 0:01:57]} 21. Rb1 {[%clk 0:01:32]}  g5 {[%clk 0:01:51]} 22. Qb2 {[%clk 0:01:28]}  Bc5 {[%clk 0:01:50]} 23. Bxg5 {[%clk 0:01:26]}  Rhg8 {[%clk 0:01:47]} 24. h4 {[%clk 0:01:23]}  b6 {[%clk 0:01:45]} 25. a4 {[%clk 0:01:05]}  a5 {[%clk 0:01:44]} 26. Qb5 {[%clk 0:01:04]}  Rg6 {[%clk 0:01:04]} 27. Rf2 {[%clk 0:01:02]}  Bb4 {[%clk 0:00:42]} 28. Qa6+ {[%clk 0:00:43]}  Kb8 {[%clk 0:00:27]} 29. Rbf1 {[%clk 0:00:42]}  Bc5 {[%clk 0:00:21]} 30. Qb5 {[%clk 0:00:41]}  Ka7 {[%clk 0:00:20]} 31. Qb1 {[%clk 0:00:33]}  Qd7 {[%clk 0:00:17]} 32. Qd1 {[%clk 0:00:32]}  Rg7 {[%clk 0:00:13]} 33. Bh6 {[%clk 0:00:31]}  Rgg8 {[%clk 0:00:13]} 34. Bxf8 {[%clk 0:00:31]}  Rxf8 {[%clk 0:00:14]} 35. Qxh5 {[%clk 0:00:32]}  Qxa4 {[%clk 0:00:13]} 36. Rxf7+ {[%clk 0:00:32]}  Rxf7 {[%clk 0:00:12]} 37. Qxf7+ {[%clk 0:00:32]}  Ka6 {[%clk 0:00:08]} 38. Qxe6 {[%clk 0:00:30]} 1-0


[Site "https://www.chess.com"]

[Event "Titled Tuesday Blitz June 27 Early 2023"]
[White "Rosenberg, Evan S"]
[Black "chess123456s"]
[WhiteFideId "2019299"]
[WhiteElo "2362"]
[BlackElo "2553"]
[Result "0-1"]
[Round "9"]
[TimeControl "180+2"]
[Date "2023.06.27"]
[WhiteClock "0:00:51"]
[BlackClock "0:01:59"]
[Board "86"]

1. d4 {[%clk 0:03:00]}  d5 {[%clk 0:02:59]} 2. Nf3 {[%clk 0:03:00]}  Nf6 {[%clk 0:03:00]} 3. Bg5 {[%clk 0:03:00]}  Ne4 {[%clk 0:02:59]} 4. Bh4 {[%clk 0:03:00]}  h5 {[%clk 0:02:59]} 5. Nfd2 {[%clk 0:02:51]}  g5 {[%clk 0:02:56]} 6. Bg3 {[%clk 0:02:07]}  h4 {[%clk 0:02:53]} 7. Be5 {[%clk 0:01:48]}  f6 {[%clk 0:02:52]} 8. f3 {[%clk 0:01:36]}  Nxd2 {[%clk 0:02:45]} 9. Qxd2 {[%clk 0:01:37]}  Bh6 {[%clk 0:02:37]} 10. Qd3 {[%clk 0:01:33]}  Kf7 {[%clk 0:02:29]} 11. Nc3 {[%clk 0:01:17]}  Nc6 {[%clk 0:02:25]} 12. O-O-O {[%clk 0:01:16]}  fxe5 {[%clk 0:02:24]} 13. dxe5 {[%clk 0:01:16]}  Be6 {[%clk 0:02:25]} 14. e4 {[%clk 0:01:15]}  d4 {[%clk 0:02:19]} 15. Nb5 {[%clk 0:01:13]}  a6 {[%clk 0:02:09]} 16. Nxd4 {[%clk 0:01:13]}  Nxd4 {[%clk 0:02:10]} 17. Qxd4 {[%clk 0:01:13]}  Qxd4 {[%clk 0:02:11]} 18. Rxd4 {[%clk 0:01:14]}  Bg7 {[%clk 0:02:12]} 19. Rb4 {[%clk 0:01:12]}  b6 {[%clk 0:02:07]} 20. Bc4 {[%clk 0:01:07]}  Bxc4 {[%clk 0:02:04]} 21. Rxc4 {[%clk 0:01:07]}  Bxe5 {[%clk 0:02:05]} 22. h3 {[%clk 0:01:05]}  Bf4+ {[%clk 0:02:04]} 23. Kb1 {[%clk 0:01:05]}  Rhd8 {[%clk 0:02:05]} 24. a4 {[%clk 0:00:56]}  Rd2 {[%clk 0:02:04]} 25. Rg1 {[%clk 0:00:56]}  Rad8 {[%clk 0:02:03]} 26. Ka2 {[%clk 0:00:53]}  R8d4 {[%clk 0:02:02]} 27. Rxd4 {[%clk 0:00:52]}  Rxd4 {[%clk 0:02:03]} 28. b3 {[%clk 0:00:53]}  Rd2 {[%clk 0:02:03]} 29. Kb2 {[%clk 0:00:53]}  Bh2 {[%clk 0:02:00]} 30. Rh1 {[%clk 0:00:50]}  Rxg2 {[%clk 0:02:01]} 31. Kc3 {[%clk 0:00:51]}  Be5+ {[%clk 0:02:01]} 32. Kc4 {[%clk 0:00:51]}  Rxc2+ {[%clk 0:02:00]} 33. Kd5 {[%clk 0:00:51]}  Rc5# {[%clk 0:01:59]} 0-1


[Site "https://www.chess.com"]

[Event "Titled Tuesday Blitz June 27 Early 2023"]
[White "Blokhin, Sofia"]
[Black "Adla, Diego"]
[WhiteFideId "4508190"]
[BlackFideId "100072"]
[WhiteElo "2329"]
[BlackElo "2540"]
[Result "0-1"]
[Round "9"]
[TimeControl "180+2"]
[Date "2023.06.27"]
[WhiteClock "0:00:00"]
[BlackClock "0:00:07"]
[Board "87"]

1. d4 {[%clk 0:03:00]}  Nf6 {[%clk 0:02:59]} 2. c4 {[%clk 0:02:59]}  e6 {[%clk 0:02:59]} 3. Nc3 {[%clk 0:03:00]}  Bb4 {[%clk 0:02:59]} 4. f3 {[%clk 0:03:00]}  Nc6 {[%clk 0:02:51]} 5. a3 {[%clk 0:02:58]}  Bxc3+ {[%clk 0:02:51]} 6. bxc3 {[%clk 0:02:58]}  b6 {[%clk 0:02:42]} 7. e4 {[%clk 0:02:56]}  Ba6 {[%clk 0:02:42]} 8. Bd3 {[%clk 0:02:53]}  Na5 {[%clk 0:02:41]} 9. Qe2 {[%clk 0:02:53]}  Ng8 {[%clk 0:02:38]} 10. Nh3 {[%clk 0:02:50]}  Ne7 {[%clk 0:02:38]} 11. O-O {[%clk 0:02:48]}  Rc8 {[%clk 0:02:33]} 12. a4 {[%clk 0:02:46]}  c5 {[%clk 0:02:33]} 13. d5 {[%clk 0:02:45]}  O-O {[%clk 0:02:28]} 14. f4 {[%clk 0:02:34]}  Nb3 {[%clk 0:02:25]} 15. Rb1 {[%clk 0:02:32]}  Nxc1 {[%clk 0:02:25]} 16. Rbxc1 {[%clk 0:02:30]}  exd5 {[%clk 0:02:25]} 17. cxd5 {[%clk 0:02:27]}  Bxd3 {[%clk 0:02:23]} 18. Qxd3 {[%clk 0:02:28]}  d6 {[%clk 0:02:21]} 19. c4 {[%clk 0:02:17]}  f6 {[%clk 0:02:19]} 20. f5 {[%clk 0:02:12]}  Qd7 {[%clk 0:02:12]} 21. Nf4 {[%clk 0:02:11]}  Qxa4 {[%clk 0:02:11]} 22. Ne6 {[%clk 0:02:08]}  Rf7 {[%clk 0:02:11]} 23. Ra1 {[%clk 0:02:06]}  Qd7 {[%clk 0:02:11]} 24. Ra6 {[%clk 0:01:59]}  Rb8 {[%clk 0:02:06]} 25. Rfa1 {[%clk 0:01:55]}  Rb7 {[%clk 0:02:06]} 26. g4 {[%clk 0:01:50]}  g5 {[%clk 0:01:59]} 27. fxg6 {[%clk 0:01:46]}  hxg6 {[%clk 0:01:58]} 28. g5 {[%clk 0:01:32]}  f5 {[%clk 0:01:50]} 29. exf5 {[%clk 0:01:00]}  Nxf5 {[%clk 0:01:49]} 30. Rf1 {[%clk 0:00:52]}  Ng7 {[%clk 0:01:43]} 31. Qxg6 {[%clk 0:00:49]}  Rxf1+ {[%clk 0:01:41]} 32. Kxf1 {[%clk 0:00:49]}  Qf7+ {[%clk 0:01:34]} 33. Qf6 {[%clk 0:00:47]}  Nh5 {[%clk 0:01:23]} 34. Qxf7+ {[%clk 0:00:40]}  Rxf7+ {[%clk 0:01:24]} 35. Ke1 {[%clk 0:00:36]}  Nf4 {[%clk 0:01:19]} 36. Nd8 {[%clk 0:00:31]}  Re7+ {[%clk 0:01:16]} 37. Kd1 {[%clk 0:00:29]}  Nd3 {[%clk 0:01:08]} 38. Nc6 {[%clk 0:00:27]}  Rg7 {[%clk 0:01:08]} 39. h4 {[%clk 0:00:25]}  Nb2+ {[%clk 0:01:04]} 40. Kc2 {[%clk 0:00:25]}  Nxc4 {[%clk 0:01:05]} 41. Rxa7 {[%clk 0:00:21]}  Ne3+ {[%clk 0:01:00]} 42. Kd3 {[%clk 0:00:19]}  Nxd5 {[%clk 0:01:01]} 43. Ra8+ {[%clk 0:00:17]}  Kh7 {[%clk 0:01:00]} 44. Rd8 {[%clk 0:00:14]}  Nf4+ {[%clk 0:00:38]} 45. Ke3 {[%clk 0:00:12]}  Ng2+ {[%clk 0:00:37]} 46. Ke4 {[%clk 0:00:10]}  Nxh4 {[%clk 0:00:38]} 47. Rxd6 {[%clk 0:00:10]}  Rxg5 {[%clk 0:00:36]} 48. Kf4 {[%clk 0:00:09]}  Rg7 {[%clk 0:00:31]} 49. Nd8 {[%clk 0:00:07]}  Ng6+ {[%clk 0:00:28]} 50. Ke3 {[%clk 0:00:05]}  Ne7 {[%clk 0:00:28]} 51. Ne6 {[%clk 0:00:03]}  Rg3+ {[%clk 0:00:23]} 52. Kf4 {[%clk 0:00:03]}  Kg8 {[%clk 0:00:08]} 53. Kxg3 {[%clk 0:00:01]}  Nf5+ {[%clk 0:00:07]} 54. Kf4 {[%clk 0:00:02]}  Nxd6 {[%clk 0:00:08]} 55. Ke5 {[%clk 0:00:03]}  Nb7 {[%clk 0:00:07]} 56. Kd5 {[%clk 0:00:03]}  Na5 {[%clk 0:00:07]} 57. Nc7 {[%clk 0:00:01]}  Kf7 {[%clk 0:00:07]} 58. Nb5 {[%clk 0:00:01]}  Ke7 {[%clk 0:00:07]} 59. Nd6 {[%clk 0:00:00]}  Kd7 {[%clk 0:00:07]} 0-1


[Site "https://www.chess.com"]